fUST/lending_fUST_20251114
["ID","MTS","AMOUNT","RATE_DAILY","PERIOD"]
[393953706,1763128012052,-157.199849,0.000391,120]
[393953707,1763128012122,-361.007074,0.000391,120]
[393953708,1763128012191,-361.007074,0.000391,120]
[393953709,1763128012257,-361.007074,0.000391,120]
[393953710,1763128012325,-361.007074,0.000391,120]
[393953711,1763128012400,-152.86,0.00039184,120]
[393953712,1763128012475,-152.86,0.00039284,120]
[393953713,1763128012544,-1021.784884,0.000393,29]
[393953714,1763128012614,-152.86,0.00039384,120]
[393953715,1763128012674,-162.415349,0.0003943,120]
[393953716,1763128012740,-151.0,0.0003943,120]
[393953717,1763128012815,-151.0,0.0003943,120]
[393953718,1763128012891,-174.486849,0.0003943,120]
[393953719,1763128012963,-174.486849,0.0003943,120]
[393953720,1763128013033,-174.486849,0.0003943,120]
[393953721,1763128013100,-174.486849,0.0003943,120]
[393953726,1763128013170,-152.86,0.00039484,120]
[393953727,1763128013242,-1701.23,0.000395,14]
[393953728,1763128013312,-200.65638726,0.00039523,30]
[393953729,1763128013374,-158.83417,0.00039524,120]
[393953730,1763128013435,-162.337381,0.00039524,120]
[393953731,1763128013496,-151.0,0.00039524,120]
[393953732,1763128013557,-153.804318,0.00039524,120]
[393953733,1763128013623,-151.0,0.00039524,120]
[393953734,1763128013691,-151.0,0.00039524,120]
[393953735,1763128013755,-151.0,0.00039524,120]
[393953736,1763128013834,-151.0,0.00039524,120]
[393953737,1763128013907,-151.0,0.00039524,120]
[393953738,1763128013976,-151.0,0.00039524,120]
[393953739,1763128014121,-161.811269,0.00039524,120]
[393953740,1763128014191,-159.146076,0.00039524,120]
[393953741,1763128014259,-151.0,0.00039524,120]
[393953742,1763128014333,-319.741427,0.00039524,120]
[393953743,1763128014402,-151.0,0.00039524,120]
[393953744,1763128014473,-319.741427,0.00039524,120]
[393953745,1763128014540,-319.741427,0.00039524,120]
[393953746,1763128014603,-319.741427,0.00039524,120]
[393953747,1763128014669,-151.0,0.00039524,120]
[393953748,1763128014732,-151.0,0.00039524,120]
[393953749,1763128014807,-151.0,0.00039524,120]
[393953750,1763128014880,-151.0,0.00039524,7]
[393953751,1763128014961,-259.528874,0.00039524,120]
[393953752,1763128015038,-259.528874,0.00039524,120]
[393953753,1763128015109,-151.0,0.00039524,120]
[393953754,1763128015179,-259.528874,0.00039524,120]
[393953755,1763128015248,-259.528874,0.00039524,120]
[393953756,1763128015318,-177.052078,0.00039524,120]
[393953757,1763128015384,-153.938685,0.00039524,120]
[393953758,1763128015449,-151.0,0.00039524,120]
[393953759,1763128015511,-151.0,0.00039524,120]
[393953760,1763128015574,-151.0,0.00039524,120]
[393953761,1763128015641,-151.0,0.00039524,120]
[393953762,1763128015706,-151.0,0.00039524,30]
[393953763,1763128015772,-151.0,0.00039524,30]
[393953764,1763128015840,-190.658899,0.00039524,120]
[393953765,1763128015908,-267.193848,0.00039524,120]
[393953766,1763128015978,-267.193848,0.00039524,120]
[393953767,1763128016052,-267.193848,0.00039524,120]
[393953768,1763128016125,-267.193848,0.00039524,120]
[393953769,1763128016189,-155.374337,0.0003953,120]
[393953770,1763128016255,-151.0,0.0003953,7]
[393953771,1763128016319,-151.0,0.0003953,7]
[393953772,1763128016384,-151.0,0.0003953,7]
[393953773,1763128016445,-151.0,0.0003953,7]
[393953774,1763128016508,-151.0,0.0003953,7]
[393953775,1763128016569,-151.0,0.0003953,7]
[393953776,1763128016630,-151.0,0.0003953,7]
[393953777,1763128016699,-151.0,0.0003953,7]
[393953778,1763128016783,-151.0,0.0003953,7]
[393953779,1763128016856,-151.0,0.0003953,7]
[393953780,1763128016925,-151.0,0.0003953,7]
[393953781,1763128016993,-153.43504,0.0003953,120]
[393953782,1763128017139,-151.0,0.0003953,120]
[393953783,1763128017209,-151.0,0.0003953,120]
[393953784,1763128017279,-151.0,0.0003953,120]
[393953785,1763128017361,-151.0,0.0003953,120]
[393953786,1763128017432,-151.0,0.0003953,120]
[393953787,1763128017499,-151.0,0.0003953,120]
[393953788,1763128017565,-151.0,0.0003953,120]
[393953789,1763128017628,-280.924622,0.0003953,120]
[393953790,1763128017701,-151.0,0.0003953,120]
[393953791,1763128017771,-151.0,0.0003953,120]
[393953792,1763128017843,-151.0,0.0003953,120]
[393953793,1763128017922,-151.0,0.0003953,120]
[393953794,1763128017988,-151.0,0.0003953,120]
[393953795,1763128018057,-319.741427,0.0003953,120]
[393953796,1763128018128,-319.741427,0.0003953,120]
[393953797,1763128018196,-319.741427,0.0003953,120]
[393953798,1763128018265,-319.741427,0.0003953,120]
[393953799,1763128018329,-319.741427,0.0003953,120]
[393953800,1763128018390,-319.741427,0.0003953,120]
[393953801,1763128018449,-319.741427,0.0003953,120]
[393953802,1763128018507,-319.741427,0.0003953,120]
[393953803,1763128018567,-319.741427,0.0003953,120]
[393953804,1763128018627,-319.741427,0.0003953,120]
[393953805,1763128018688,-319.741427,0.0003953,120]
[393953806,1763128018748,-319.741428,0.0003953,120]
[393953807,1763128018810,-151.0,0.0003953,120]
[393953808,1763128018872,-151.0,0.0003953,120]
[393953809,1763128018933,-151.0,0.0003953,120]
[393953810,1763128018993,-151.0,0.0003953,120]
[393953811,1763128019056,-151.0,0.0003953,120]
[393953812,1763128019120,-151.0,0.0003953,120]
[393953813,1763128019181,-151.0,0.0003953,7]
[393953814,1763128019241,-151.0,0.0003953,120]
[393953815,1763128019306,-151.0,0.0003953,7]
[393953816,1763128019372,-259.528874,0.0003953,120]
[393953817,1763128019434,-259.528874,0.0003953,120]
[393953818,1763128019497,-259.528874,0.0003953,120]
[393953819,1763128019556,-259.528874,0.0003953,120]
[393953820,1763128019619,-259.528874,0.0003953,120]
[393953821,1763128019682,-259.528874,0.0003953,120]
[393953822,1763128019742,-152.096376,0.0003953,120]
[393953823,1763128019807,-259.528874,0.0003953,120]
[393953824,1763128019961,-259.528874,0.0003953,120]
[393953825,1763128020029,-259.528874,0.0003953,120]
[393953826,1763128020103,-259.528874,0.0003953,120]
[393953827,1763128020180,-259.528874,0.0003953,120]
[393953828,1763128020268,-259.528882,0.0003953,120]
[393953829,1763128020350,-151.0,0.0003953,120]
[393953830,1763128020423,-151.0,0.0003953,120]
[393953831,1763128020499,-224.773401,0.0003953,120]
[393953832,1763128020573,-242.348322,0.0003953,120]
[393953833,1763128020644,-151.442315,0.0003953,120]
[393953834,1763128020714,-156.01345,0.0003953,120]
[393953835,1763128020786,-441.151505,0.0003953,15]
[393953836,1763128020860,-441.151505,0.0003953,15]
[393953837,1763128020933,-441.151505,0.0003953,15]
[393953838,1763128020999,-441.151505,0.0003953,15]
[393953839,1763128021071,-441.151505,0.0003953,15]
[393953840,1763128021147,-441.151505,0.0003953,15]
[393953841,1763128021214,-441.151505,0.0003953,15]
[393953842,1763128021284,-441.151505,0.0003953,15]
[393953843,1763128021350,-441.151505,0.0003953,15]
[393953844,1763128021417,-441.151505,0.0003953,15]
[393953845,1763128021480,-441.151505,0.0003953,15]
[393953846,1763128021544,-441.151503,0.0003953,15]
[393953847,1763128021610,-169.900741,0.0003953,120]
[393953848,1763128021680,-361.27597,0.0003953,120]
[393953849,1763128021758,-361.27597,0.0003953,120]
[393953850,1763128021842,-361.27597,0.0003953,120]
[393953851,1763128021931,-361.27597,0.0003953,120]
[393953852,1763128022015,-361.275968,0.0003953,120]
[393953853,1763128022096,-361.007074,0.0003953,120]
[393953854,1763128022173,-361.007074,0.0003953,120]
[393953855,1763128022260,-361.007074,0.0003953,120]
[393953856,1763128022341,-361.007074,0.0003953,120]
[393953857,1763128022418,-361.007074,0.0003953,120]
[393953858,1763128022493,-361.007074,0.0003953,120]
[393953859,1763128022569,-361.007074,0.0003953,120]
[393953860,1763128022642,-361.007074,0.0003953,120]
[393953861,1763128022715,-361.007074,0.0003953,120]
[393953862,1763128022786,-361.007074,0.0003953,120]
[393953863,1763128022860,-361.007074,0.0003953,120]
[393953864,1763128022995,-361.007082,0.0003953,120]
[393953865,1763128023082,-151.0,0.0003953,120]
[393953866,1763128023151,-151.0,0.0003953,120]
[393953867,1763128023219,-151.0,0.0003953,120]
[393953868,1763128023292,-151.0,0.0003953,120]
[393953869,1763128023362,-151.0,0.0003953,120]
[393953870,1763128023432,-151.0,0.0003953,120]
[393953871,1763128023506,-174.486849,0.0003953,120]
[393953872,1763128023580,-174.486849,0.0003953,120]
[393953873,1763128023657,-174.486849,0.0003953,120]
[393953874,1763128023739,-174.486849,0.0003953,120]
[393953875,1763128023820,-174.486849,0.0003953,120]
[393953876,1763128023898,-174.486849,0.0003953,120]
[393953877,1763128023992,-174.486849,0.0003953,120]
[393953878,1763128024078,-174.486849,0.0003953,120]
[393953879,1763128024158,-174.486849,0.0003953,120]
[393953880,1763128024234,-174.486849,0.0003953,120]
[393953881,1763128024308,-174.486849,0.0003953,120]
[393953882,1763128024390,-174.486844,0.0003953,120]
[393953883,1763128024465,-151.0,0.0003953,120]
[393953884,1763128024534,-151.0,0.0003953,120]
[393953885,1763128024608,-151.0,0.0003953,30]
[393953886,1763128024683,-151.0,0.0003953,30]
[393953887,1763128024757,-210.353762,0.0003953,30]
[393953888,1763128024837,-267.193848,0.0003953,120]
[393953889,1763128024920,-267.193848,0.0003953,120]
[393953890,1763128024998,-267.193848,0.0003953,120]
[393953891,1763128025077,-267.193848,0.0003953,120]
[393953892,1763128025148,-267.193848,0.0003953,120]
[393953893,1763128025216,-267.193848,0.0003953,120]
[393953894,1763128025288,-267.193848,0.0003953,120]
[393953895,1763128025357,-267.193856,0.0003953,120]
[393953896,1763128025427,-277.396058,0.0003953,120]
[393953897,1763128025502,-277.396058,0.0003953,120]
[393953898,1763128025573,-277.396058,0.0003953,120]
[393953899,1763128025640,-277.396058,0.0003953,120]
[393953900,1763128025709,-277.396058,0.0003953,120]
[393953901,1763128025779,-286.53806,0.0003953,120]
[393953902,1763128025852,-286.53806,0.0003953,120]
[393953903,1763128025932,-330.2,0.0003953,120]
[393953904,1763128026085,-286.53806,0.0003953,120]
[393953905,1763128026153,-330.2,0.0003953,120]
[393953906,1763128026228,-277.396058,0.0003953,120]
[393953907,1763128026301,-330.2,0.0003953,120]
[393953908,1763128026378,-286.53806,0.0003953,120]
[393953909,1763128026447,-286.53806,0.0003953,120]
[393953910,1763128026512,-277.396058,0.0003953,120]
[393953911,1763128026582,-277.396058,0.0003953,120]
[393953912,1763128026669,-286.53806,0.0003953,120]
[393953913,1763128026759,-277.396058,0.0003953,120]
[393953914,1763128026863,-330.2,0.0003953,120]
[393953915,1763128026955,-330.2,0.0003953,120]
[393953916,1763128027044,-330.2,0.0003953,120]
[393953917,1763128027124,-277.396058,0.0003953,120]
[393953918,1763128027201,-277.396058,0.0003953,120]
[393953919,1763128027277,-286.53806,0.0003953,120]
[393953920,1763128027349,-277.396065,0.0003953,120]
[393953921,1763128027420,-286.53806,0.0003953,120]
[393953922,1763128027490,-286.53806,0.0003953,120]
[393953923,1763128027560,-330.2,0.0003953,120]
[393953924,1763128027633,-330.2,0.0003953,120]
[393953925,1763128027701,-330.2,0.0003953,120]
[393953926,1763128027779,-330.2,0.0003953,120]
[393953927,1763128027861,-330.2,0.0003953,120]
[393953928,1763128027942,-286.53806,0.0003953,120]
[393953929,1763128028025,-330.2,0.0003953,120]
[393953930,1763128028107,-286.53806,0.0003953,120]
[393953931,1763128028185,-286.538055,0.0003953,120]
[393953932,1763128028265,-151.0,0.0003953,120]
[393953933,1763128028343,-151.00000039,0.0003953,120]
[393953934,1763128028417,-151.0,0.0003953,120]
[393953935,1763128028490,-251.761621,0.0003953,120]
[393953936,1763128028560,-151.0,0.0003953,120]
[393953937,1763128028635,-1053.349591,0.0003953,28]
[393953938,1763128028706,-151.0,0.0003953,120]
[393953939,1763128028791,-1053.349591,0.0003953,28]
[393953940,1763128028877,-151.0,0.0003953,120]
[393953941,1763128029018,-1053.349591,0.0003953,28]
[393953942,1763128029108,-1053.349591,0.0003953,28]
[393953943,1763128029182,-151.0,0.0003953,120]
[393953944,1763128029264,-151.0,0.0003953,120]
[393953945,1763128029344,-151.0,0.0003953,120]
[393953946,1763128029415,-151.0,0.0003953,120]
[393953947,1763128029480,-151.0,0.0003953,120]
[393953948,1763128029549,-151.0,0.0003953,120]
[393953949,1763128029622,-151.0,0.0003953,120]
[393953950,1763128029700,-151.0,0.0003953,120]
[393953951,1763128029775,-151.0,0.0003953,120]
[393953952,1763128029845,-191.325985,0.0003953,120]
[393953953,1763128029916,-1053.349591,0.0003953,28]
[393953954,1763128029984,-1053.349591,0.0003953,28]
[393953955,1763128030055,-1053.349591,0.0003953,28]
[393953956,1763128030132,-1053.349591,0.0003953,28]
[393953957,1763128030204,-578.474932,0.0003953,120]
[393953958,1763128030283,-1053.349591,0.0003953,28]
[393953959,1763128030363,-578.474932,0.0003953,120]
[393953960,1763128030438,-578.474932,0.0003953,120]
[393953961,1763128030512,-1053.349591,0.0003953,28]
[393953962,1763128030581,-1053.349591,0.0003953,28]
[393953963,1763128030650,-1053.349587,0.0003953,28]
[393953964,1763128030734,-578.474932,0.0003953,120]
[393953965,1763128030809,-578.474932,0.0003953,120]
[393953966,1763128030884,-578.474932,0.0003953,120]
[393953967,1763128030954,-578.474932,0.0003953,120]
[393953968,1763128031027,-578.474932,0.0003953,120]
[393953969,1763128031094,-578.474932,0.0003953,120]
[393953970,1763128031156,-578.474932,0.0003953,120]
[393953971,1763128031218,-578.474932,0.0003953,120]
[393953972,1763128031286,-578.47494021,0.0003953,120]
[393953973,1763128031350,-151.0,0.0003953,120]
[393953974,1763128031413,-151.0,0.0003953,120]
[393953975,1763128031474,-153.694439,0.0003953,120]
[393953976,1763128031537,-151.0,0.0003953,120]
[393953977,1763128031609,-151.0,0.0003953,120]
[393953978,1763128031758,-152.86,0.00039584,120]
[393953979,1763128031841,-346.90311832,0.000396,120]
[393953980,1763128031925,-168.33726787,0.000396,120]
[393953981,1763128032004,-175.19528277,0.000396,120]
[393953982,1763128032081,-160.0,0.000396,120]
[393953983,1763128032150,-167.77333688,0.000396,120]
[393953984,1763128032225,-186.92888816,0.000396,120]
[393953985,1763128032306,-171.53133121,0.000396,120]
[393953986,1763128032380,-168.22439545,0.000396,120]
[393953987,1763128032453,-160.0,0.000396,120]
[393953988,1763128032527,-184.67994438,0.000396,120]
[393953989,1763128032608,-188.59742222,0.000396,120]
[393953990,1763128032698,-184.16362982,0.000396,120]
[393953991,1763128032786,-173.53894824,0.000396,120]
[393953992,1763128032867,-196.22852296,0.000396,120]
[393953993,1763128032946,-168.76650475,0.000396,120]
[393953994,1763128033028,-234.66200129,0.000396,120]
[393953995,1763128033102,-336.541438,0.000396,7]
[393953996,1763128033173,-166.37264668,0.00039644,30]
[393953997,1763128033247,-1000.0,0.00039655,90]
[393953998,1763128033332,-492.0,0.00039655,90]
[393953999,1763128033406,-152.86,0.00039684,120]
[393954000,1763128033472,-260.7792336,0.000397,24]
[393954001,1763128033540,-152.86,0.00039784,120]
[393954002,1763128033614,-152.86,0.00039884,120]
[393954003,1763128033686,-336.541438,0.00039937,60]
[393954004,1763128033762,-152.86,0.00039984,120]
[393954005,1763128033847,-58316.28913989,0.0004,120]
[393954006,1763128033924,-5000.00428625,0.0004,90]
[393954007,1763128034009,-184.84,0.0004,30]
[393954008,1763128034089,-336.541438,0.0004,120]
[393954009,1763128034160,-151.0,0.0004,60]
[393954010,1763128034233,-1031.51532747,0.0004,60]
[393954011,1763128034311,-600.9201148,0.00040005,120]
[393954012,1763128034385,-166.37264668,0.00040055,30]
[393954013,1763128034522,-152.86,0.00040084,120]
[393954014,1763128034598,-164.01680587,0.00040164,30]
[393954015,1763128034667,-2704.682651,0.00040183,120]
[393954016,1763128034743,-152.86,0.00040184,120]
[393954017,1763128034815,-160.0,0.000402,120]
[393954018,1763128034891,-152.86,0.00040284,120]
[393954019,1763128034969,-152.86,0.00040384,120]
[393954020,1763128035040,-152.86,0.00040484,120]
[393954021,1763128035110,-166.37264668,0.00040493,30]
[393954022,1763128035188,-152.86,0.00040584,120]
[393954023,1763128035263,-641.62,0.000406,7]
[393954024,1763128035339,-152.86,0.00040684,120]
[393954025,1763128035410,-164.01680587,0.00040685,30]
[393954026,1763128035479,-18495.38,0.000407,14]
[393954027,1763128035542,-150.0,0.000407,5]
[393954028,1763128035610,-152.86,0.00040784,120]
[393954029,1763128035679,-346.90311832,0.000408,120]
[393954030,1763128035750,-168.33726787,0.000408,120]
[393954031,1763128035823,-160.0,0.000408,120]
[393954032,1763128035893,-168.22439545,0.000408,120]
[393954033,1763128035965,-173.53894824,0.000408,120]
[393954034,1763128036037,-168.76650475,0.000408,120]
[393954035,1763128036112,-234.66200129,0.000408,120]
[393954036,1763128036185,-1701.23,0.000408,14]
[393954037,1763128036260,-152.86,0.00040884,120]
[393954038,1763128036334,-18495.38,0.000409,14]
[393954039,1763128036397,-1701.23,0.000409,14]
[393954040,1763128036461,-166.37264668,0.00040904,30]
[393954041,1763128036528,-152.86,0.00040984,120]
[393954042,1763128036591,-164.35948549,0.00041,30]
[393954043,1763128036653,-151.0,0.00041073,60]
[393954044,1763128036729,-152.86,0.00041084,120]
[393954045,1763128036809,-999.0,0.00041095,120]
[393954046,1763128036880,-150.0,0.00041096,10]
[393954048,1763128036967,-152.95626275,0.00041184,120]
[393954049,1763128037113,-250.0,0.00041248,10]
[393954050,1763128037186,-641.62,0.000413,14]
[393954051,1763128037255,-184.84,0.000413,30]
[393954052,1763128037331,-166.37264668,0.00041315,30]
[393954053,1763128037403,-155.0,0.00041479,120]
[393954054,1763128037468,-151.8157784,0.0004148,14]
[393954055,1763128037531,-600.0,0.00041576,60]
[393954056,1763128037597,-166.37264668,0.00041753,30]
[393954057,1763128037662,-350.0,0.00041796,10]
[393954058,1763128037729,-346.90311832,0.00042,120]
[393954059,1763128037804,-168.33726787,0.00042,120]
[393954060,1763128037880,-160.0,0.00042,120]
[393954061,1763128037951,-168.22439545,0.00042,120]
[393954062,1763128038020,-173.53894824,0.00042,120]
[393954063,1763128038084,-168.76650475,0.00042,120]
[393954064,1763128038152,-234.66200129,0.00042,120]
[393954065,1763128038223,-645.2502872,0.00042005,120]
[393954066,1763128038297,-600.0,0.00042124,60]
[393954067,1763128038364,-151.0,0.00042147,60]
[393954068,1763128038424,-510.72209854,0.0004222,30]
[393954069,1763128038483,-504.60629337,0.0004222,30]
[393954070,1763128038548,-500.0,0.0004222,30]
[393954071,1763128038609,-450.0,0.00042344,10]
[393954072,1763128038669,-1701.23,0.000424,14]
[393954073,1763128038733,-18495.38,0.000424,14]
[393954074,1763128038801,-200.49360708,0.00042466,10]
[393954075,1763128038872,-200.0,0.00042569,120]
[393954076,1763128038942,-200.0,0.00042569,120]
[393954077,1763128039012,-200.0,0.00042569,120]
[393954078,1763128039076,-302.0,0.0004263,24]
[393954079,1763128039138,-600.0,0.00042672,60]
[393954080,1763128039197,-18495.38,0.000428,14]
[393954081,1763128039260,-151.0,0.000428,120]
[393954082,1763128039390,-151.0,0.000428,120]
[393954083,1763128039452,-550.0,0.00042892,10]
[393954084,1763128039514,-163.0,0.00043,120]
[393954085,1763128039586,-325.0,0.00043,90]
[393954086,1763128039662,-325.0,0.00043014,90]
[393954087,1763128039741,-693.37132068,0.00043056,14]
[393954088,1763128039817,-800.0,0.00043161,14]
[393954089,1763128039893,-250.0,0.00043219,30]
[393954090,1763128039961,-250.0,0.00043219,30]
[393954091,1763128040025,-250.0,0.00043219,30]
[393954092,1763128040091,-250.0,0.00043219,30]
[393954093,1763128040156,-250.0,0.00043219,30]
[393954094,1763128040218,-250.0,0.00043219,30]
[393954095,1763128040284,-250.0,0.00043219,30]
[393954096,1763128040350,-250.0,0.00043219,30]
[393954097,1763128040413,-250.0,0.00043219,30]
[393954099,1763128040501,-250.0,0.00043219,30]
[393954100,1763128040586,-250.0,0.00043219,30]
[393954101,1763128040668,-250.0,0.00043219,30]
[393954102,1763128040752,-250.0,0.00043219,30]
[393954104,1763128040839,-250.0,0.00043219,30]
[393954105,1763128040931,-250.0,0.00043219,30]
[393954106,1763128041012,-250.0,0.00043219,30]
[393954107,1763128041098,-151.0,0.00043219,30]
[393954108,1763128041183,-256.42489316,0.00043219,30]
[393954109,1763128041275,-156.587,0.00043219,30]
[393954110,1763128041361,-162.380719,0.00043219,30]
[393954111,1763128041436,-168.3888056,0.00043219,30]
[393954112,1763128041510,-174.61919141,0.00043219,30]
[393954114,1763128041586,-181.08010149,0.00043219,30]
[393954115,1763128041660,-187.78006525,0.00043219,30]
[393954116,1763128041741,-194.72792766,0.00043219,30]
[393954117,1763128041923,-201.93286099,0.00043219,30]
[393954118,1763128042002,-209.40437684,0.00043219,30]
[393954119,1763128042078,-217.15233878,0.00043219,30]
[393954120,1763128042160,-600.0,0.0004322,60]
[393954121,1763128042236,-400.38245665,0.0004322,30]
[393954122,1763128042307,-9092.1265,0.0004322,30]
[393954123,1763128042376,-500.0,0.0004322,60]
[393954124,1763128042449,-332.0,0.0004322,14]
[393954125,1763128042516,-332.0,0.0004322,14]
[393954126,1763128042578,-253.08994522,0.0004322,14]
[393954127,1763128042638,-500.0,0.0004322,16]
[393954128,1763128042701,-501.1637857,0.0004322,16]
[393954129,1763128042767,-151.0,0.0004322,60]
[393954130,1763128042839,-200.0,0.0004322,120]
[393954131,1763128042909,-200.0,0.0004322,120]
[393954132,1763128042977,-200.0,0.0004322,120]
[393954133,1763128043044,-150.4,0.00043236,120]
[393954134,1763128043107,-346.90311832,0.000433,120]
[393954135,1763128043172,-168.33726787,0.000433,120]
[393954136,1763128043240,-168.22439545,0.000433,120]
[393954137,1763128043308,-173.53894824,0.000433,120]
[393954138,1763128043379,-168.76650475,0.000433,120]
[393954139,1763128043447,-234.66200129,0.000433,120]
[393954140,1763128043514,-200.0,0.00043323,120]
[393954141,1763128043589,-150.4,0.00043336,120]
[393954142,1763128043655,-500.0,0.0004342,30]
[393954143,1763128043729,-150.4,0.00043436,120]
[393954144,1763128043811,-650.0,0.0004344,10]
[393954145,1763128043891,-200.0,0.00043473,10]
[393954146,1763128043968,-19973.99293092,0.000435,120]
[393954147,1763128044043,-150.4,0.00043536,120]
[393954148,1763128044112,-152.992844,0.00043542,120]
[393954150,1763128044184,-354.24775911,0.00043562,120]
[393954151,1763128044260,-244.89,0.00043588,120]
[393954152,1763128044338,-1000.0,0.00043621,90]
[393954153,1763128044407,-791.0,0.00043621,90]
[393954154,1763128044477,-150.4,0.00043636,120]
[393954156,1763128044551,-150.4,0.00043736,120]
[393954157,1763128044623,-600.0,0.00043768,60]
[393954158,1763128044684,-1000.0,0.000438,90]
[393954159,1763128044747,-999.0,0.00043835,120]
[393954160,1763128044818,-150.4,0.00043836,120]
[393954162,1763128044962,-336.541438,0.00043883,10]
[393954163,1763128045039,-150.4,0.00043936,120]
[393954164,1763128045105,-750.0,0.00043988,10]
[393954165,1763128045176,-200.0,0.00044,120]
[393954167,1763128045244,-641.62,0.00044,14]
[393954168,1763128045310,-689.58045961,0.00044005,120]
[393954169,1763128045379,-150.4,0.00044036,120]
[393954170,1763128045445,-150.4,0.00044136,120]
[393954171,1763128045510,-150.4,0.00044236,120]
[393954173,1763128045571,-600.0,0.00044316,60]
[393954174,1763128045631,-200.0,0.0004433,65]
[393954175,1763128045701,-150.4,0.00044336,120]
[393954176,1763128045760,-163.6085661,0.00044428,30]
[393954177,1763128045836,-150.4,0.00044436,120]
[393954179,1763128045910,-11252.98250066,0.00044474,28]
[393954180,1763128045981,-614.12550219,0.00044536,10]
[393954181,1763128046056,-150.4,0.00044536,120]
[393954182,1763128046126,-346.90311832,0.000446,120]
[393954183,1763128046201,-234.66200129,0.000446,120]
[393954184,1763128046278,-150.4,0.00044636,120]
[393954185,1763128046348,-395.2109804,0.00044684,30]
[393954186,1763128046411,-395.2109804,0.00044684,30]
[393954187,1763128046473,-386.0983661,0.00044684,30]
[393954188,1763128046537,-150.4,0.00044736,120]
[393954189,1763128046604,-150.4,0.00044836,120]
[393954190,1763128046676,-600.0,0.00044864,60]
[393954191,1763128046745,-325.0,0.00044877,90]
[393954192,1763128046831,-150.4,0.00044936,120]
[393954193,1763128046913,-307.3842532,0.00044976,30]
[393954194,1763128046991,-336.541438,0.00044985,120]
[393954195,1763128047059,-20000.0,0.00045,120]
[393954196,1763128047124,-250.0,0.00045,7]
[393954197,1763128047188,-952.72731,0.00045,120]
[393954198,1763128047253,-150.4,0.00045036,120]
[393954199,1763128047316,-224.2617331,0.00045095,30]
[393954200,1763128047380,-403.5785455,0.00045095,30]
[393954201,1763128047444,-300.3678215,0.00045095,30]
[393954202,1763128047515,-191.2434578,0.00045095,30]
[393954203,1763128047589,-300.3678215,0.00045095,30]
[393954204,1763128047660,-164.2237678,0.00045095,30]
[393954205,1763128047734,-164.2237678,0.00045095,30]
[393954206,1763128047874,-300.3678215,0.00045095,30]
[393954207,1763128047955,-191.2434578,0.00045095,30]
[393954208,1763128048027,-164.2237678,0.00045095,30]
[393954209,1763128048108,-300.3678215,0.00045095,30]
[393954210,1763128048182,-300.3678215,0.00045095,30]
[393954211,1763128048255,-164.2237678,0.00045095,30]
[393954212,1763128048324,-689.9781709,0.00045095,30]
[393954213,1763128048400,-164.2237678,0.00045095,30]
[393954214,1763128048472,-164.2237678,0.00045095,30]
[393954215,1763128048538,-164.2237678,0.00045095,30]
[393954216,1763128048600,-164.2237678,0.00045095,30]
[393954217,1763128048668,-164.2237678,0.00045095,30]
[393954218,1763128048732,-164.2237678,0.00045095,30]
[393954219,1763128048794,-469.7751277,0.00045095,30]